bitfinex-derivatives/quotes_SOLF0:USTF0_20260116
["timestamp","ask_amount","ask_price","bid_price","bid_amount"]
[1768593036808,6.2437,144.21,144.16,8.80637281]
[1768593037111,11.26729635,144.23,144.16,8.80637281]
[1768593038911,11.26729635,144.23,144.14,15.05267281]
[1768593039109,11.26729635,144.23,144.14,8.80637281]
[1768593039708,9.54363115,144.23,144.14,8.80637281]
[1768593039912,7.9673652,144.21,144.14,8.80637281]
[1768593041318,17.51099635,144.21,144.14,8.80637281]
[1768593043217,15.78673115,144.23,144.15,8.80637281]
[1768593043422,1.7236652,144.22,144.15,8.80637281]
[1768593043719,6.2431,144.23,144.15,8.80637281]
[1768593044921,6.2431,144.23,144.16,8.80637281]
[1768593045312,11.26729635,144.22,144.16,8.80637281]
[1768593045512,11.26729635,144.2,144.14,8.80637281]
[1768593051628,14.9033892,144.23,144.15,8.68883877]
[1768593051827,16.6270544,144.23,144.15,8.68883877]
[1768593052929,16.6270544,144.23,144.15,14.93503877]
[1768593053929,16.6270544,144.23,144.16,6.2458]
[1768593056426,16.6270544,144.23,144.17,8.68883877]
[1768593056831,8.6603892,144.23,144.16,3.0]
[1768593057934,8.6603892,144.23,144.16,9.2455]
[1768593059331,10.3840544,144.22,144.13,11.68883877]
[1768593059537,10.3840544,144.2,144.13,8.68883877]
[1768593060334,10.3840544,144.2,144.13,6.2468]
[1768593060830,10.3840544,144.18,144.11,11.68883877]
[1768593061031,10.3840544,144.18,144.11,8.68883877]
[1768593061226,8.6603892,144.17,144.1,6.2482]
[1768593062943,8.6603892,144.16,144.1,6.2482]
[1768593065036,10.3840544,144.16,144.07,10.41250397]
[1768593065841,10.3840544,144.16,144.09,6.2487]
[1768593066036,10.3840544,144.16,144.08,8.68883877]
[1768593066643,8.6603892,144.16,144.08,8.68883877]
[1768593067238,8.6603892,144.16,144.1,6.2484]
[1768593070442,8.6603892,144.16,144.11,6.2479]
[1768593074156,8.6603892,144.16,144.09,8.68883877]
[1768593074554,97.1284,144.21,144.07,8.68883877]
[1768593074555,8.6603892,144.14,144.07,8.68883877]
[1768593074857,8.6603892,144.14,144.07,6.2496]
[1768593075155,10.38675671,144.13,144.05,14.93923877]
[1768593075356,10.38675671,144.13,144.05,8.68883877]
[1768593075953,8.6603892,144.13,144.05,8.68883877]
[1768593076156,10.38675671,144.13,144.06,6.2501]
[1768593076353,8.6603892,144.13,144.06,8.68883877]
[1768593076652,8.6603892,144.15,144.06,10.41520628]
[1768593077853,8.6603892,144.15,144.09,6.2488]
[1768593078048,1.72636751,144.17,144.09,8.68883877]
[1768593078255,8.6603892,144.17,144.09,8.68883877]
[1768593079555,8.6603892,144.19,144.12,8.68883877]
[1768593080759,8.6603892,144.19,144.14,6.2466]
[1768593082161,8.6603892,144.19,144.12,14.93603877]
[1768593082457,10.38675671,144.19,144.12,14.93603877]
[1768593082761,10.38675671,144.19,144.13,6.2471]
[1768593083458,9.04387505,144.18,144.11,6.2477]
[1768593083953,9.04387505,144.18,144.09,10.77504713]
[1768593084264,9.04387505,144.18,144.12,6.2475]
[1768593090864,9.04387505,144.18,144.13,6.2471]
[1768593091865,9.04387505,144.18,144.11,9.12131066]
[1768593092060,9.04387505,144.18,144.09,12.12131066]
[1768593092265,8.70707314,144.16,144.09,9.12131066]
[1768593092468,8.70707314,144.16,144.08,6.2489]
[1768593093063,14.95307314,144.16,144.09,6.2486]
[1768593093264,8.70707314,144.15,144.08,9.12131066]
[1768593093562,8.70707314,144.14,144.07,6.2494]
[1768593094566,8.70707314,144.14,144.07,15.37071066]
[1768593095555,14.95377314,144.14,144.07,15.37071066]
[1768593098878,8.70707314,144.14,144.07,15.37071066]
[1768593101370,8.70707314,144.14,144.08,6.2493]
[1768593104677,8.70707314,144.11,144.04,9.12131066]
[1768593105878,8.70707314,144.11,144.05,6.2505]
[1768593106073,8.70707314,144.11,144.05,15.37181066]
[1768593110883,8.70707314,144.11,144.05,9.12131066]
[1768593110884,14.95507314,144.11,144.05,9.12131066]
[1768593111085,14.95507314,144.11,144.03,9.12131066]
[1768593111086,8.70707314,144.1,144.03,9.12131066]
[1768593112775,8.70707314,144.1,144.03,15.37271066]
[1768593115989,8.70707314,144.1,144.04,6.251]
[1768593120194,7.97436751,144.11,144.05,9.14101275]
[1768593120395,9.45374107,144.12,144.05,9.14101275]
[1768593120594,9.45374107,144.12,144.05,10.86738026]
[1768593122293,9.45374107,144.12,144.05,9.14101275]
[1768593123896,9.45374107,144.12,144.06,6.2501]
[1768593130307,9.45374107,144.12,144.07,6.2497]
[1768593130502,7.97386751,144.13,144.07,15.39071275]
[1768593131098,17.42760858,144.13,144.07,15.39071275]
[1768593131302,15.70124107,144.13,144.07,15.39071275]
[1768593132003,15.70124107,144.13,144.07,9.14101275]
[1768593134100,9.45374107,144.13,144.07,15.39061275]
[1768593134301,15.70034107,144.15,144.08,9.14101275]
[1768593134907,6.2468,144.14,144.08,9.14101275]
[1768593135812,9.45374107,144.15,144.08,15.39021275]
[1768593136012,9.45374107,144.15,144.09,9.14101275]
[1768593136810,15.70014107,144.15,144.09,9.14101275]
[1768593138212,9.45374107,144.14,144.07,9.14101275]
[1768593138610,6.2472,144.13,144.07,9.14101275]
[1768593138802,11.18098251,144.13,144.07,9.14101275]
[1768593139002,11.18098251,144.13,144.05,9.14101275]
[1768593139815,6.248,144.11,144.05,9.14101275]
[1768593141214,14.88981969,144.11,144.05,9.14101275]
[1768593143917,8.64181969,144.09,144.03,4.20772528]
[1768593144117,8.64181969,144.09,144.02,16.82240578]
[1768593144417,8.64181969,144.09,144.03,8.84366434]
[1768593145121,8.64181969,144.09,144.01,11.84366434]
[1768593145321,10.36906113,144.09,144.01,11.84366434]
[1768593145923,10.36906113,144.09,144.01,18.09596434]
[1768593146515,10.36906113,144.09,144.02,8.84366434]
[1768593146918,8.64181969,144.09,144.02,15.09546434]
[1768593147626,14.89081969,144.09,144.02,15.09546434]
[1768593150626,8.64181969,144.09,144.03,6.2514]
[1768593155029,8.64181969,144.09,144.04,6.251]
[1768593156831,8.64181969,144.09,144.05,6.2505]
[1768593160230,8.64181969,144.09,144.03,6.2511]
[1768593160437,10.36906113,144.09,144.03,6.2511]
[1768593160932,8.87699286,144.06,144.0,9.04546184]
[1768593161836,8.87699286,144.06,144.02,6.2518]
[1768593162734,8.87699286,144.08,144.02,6.2518]
[1768593162934,8.87699286,144.08,144.02,15.29726184]
[1768593163930,8.87699286,144.1,144.03,9.04546184]
[1768593164134,10.6042343,144.1,144.0,111.03550328]
[1768593164337,10.6042343,144.1,144.01,9.04546184]
[1768593165838,8.87699286,144.09,144.03,6.2515]
[1768593166335,8.87699286,144.09,144.04,6.251]
[1768593166540,118.0079,144.15,144.02,10.77270328]
[1768593166541,8.87699286,144.11,144.05,9.04546184]
[1768593167136,8.87699286,144.11,144.06,6.2501]
[1768593167745,8.87699286,144.17,144.1,9.04546184]
[1768593168037,8.87699286,144.17,144.08,1.72724144]
[1768593168239,8.87699286,144.15,144.07,9.04546184]
[1768593169944,8.87699286,144.15,144.08,6.249]
[1768593173337,8.87699286,144.15,144.07,10.77270328]
[1768593173832,8.87699286,144.15,144.1,6.2483]
[1768593174035,9.45268005,144.17,144.1,14.8088841]
[1768593175857,9.45268005,144.17,144.08,1.72724144]
[1768593176056,11.17992149,144.19,144.1,1.72724144]
[1768593176848,11.17992149,144.19,144.12,6.2474]
[1768593177349,9.45268005,144.19,144.12,6.2474]
[1768593177849,9.45268005,144.19,144.12,14.17897164]
[1768593178046,9.45268005,144.19,144.13,6.2043302]
[1768593179956,15.69728005,144.19,144.13,6.2043302]
[1768593180957,11.17992149,144.17,144.09,6.2586303]
[1768593181749,15.69858005,144.16,144.09,6.2586303]
[1768593182354,9.45268005,144.15,144.09,6.2586303]
[1768593182741,15.69918005,144.15,144.09,6.2586303]
[1768593182956,9.45268005,144.15,144.09,7.98587174]
[1768593184558,15.69838005,144.17,144.1,6.32839907]
[1768593184758,15.69758005,144.19,144.11,8.05564051]
[1768593185762,15.69758005,144.19,144.11,14.30364051]
[1768593186058,15.69758005,144.19,144.12,6.34527409]
[1768593186459,15.69758005,144.19,144.12,12.59277409]
[1768593186652,15.69758005,144.19,144.13,1.72724144]
[1768593186849,15.69758005,144.19,144.13,8.08919449]
[1768593187956,6.245,144.18,144.11,8.10566601]
[1768593188457,6.245,144.18,144.12,6.39492055]
[1768593205068,15.69718005,144.19,144.13,6.63922871]
[1768593205562,9.58456001,144.21,144.14,6.65249931]
[1768593206869,6.2442,144.2,144.14,6.65249931]
[1768593207368,15.82826001,144.21,144.14,12.89909931]
[1768593207673,15.82826001,144.21,144.15,6.67855979]
[1768593210272,9.69083445,144.23,144.16,6.72626201]
[1768593211369,1.72541944,144.22,144.16,6.72626201]
[1768593211573,17.65995389,144.22,144.16,6.72626201]
[1768593216573,6.2428,144.23,144.16,6.72626201]
[1768593217878,6.2428,144.23,144.17,6.80926687]
[1768593218972,17.65865389,144.24,144.18,6.82054402]
[1768593219173,11.41625389,144.26,144.18,6.82054402]
[1768593219574,9.69083445,144.26,144.18,6.82054402]
[1768593219775,11.41625389,144.26,144.18,6.82054402]
[1768593220782,6.242,144.25,144.18,13.06544402]
[1768593220981,6.242,144.25,144.19,6.84267412]
[1768593221481,11.41625389,144.26,144.19,6.84267412]
[1768593222782,17.65775389,144.26,144.19,6.84267412]
[1768593223079,17.65775389,144.26,144.2,6.86422985]
[1768593223080,1.72541944,144.26,144.2,6.86422985]
[1768593223775,1.72541944,144.26,144.21,6.87485535]
[1768593224583,7.96691944,144.26,144.21,6.87485535]
[1768593230084,6.2415,144.26,144.21,6.87485535]
[1768593230387,7.96691944,144.26,144.21,6.87485535]
[1768593231782,17.73286207,144.26,144.19,6.90399358]
[1768593232079,16.00784263,144.25,144.19,6.90399358]
[1768593232877,9.76594263,144.25,144.19,6.90399358]
[1768593233482,9.76594263,144.25,144.19,13.14829358]
[1768593233683,9.76594263,144.25,144.2,6.90978168]
[1768593234084,1.72541944,144.26,144.21,6.9125125]
[1768593234588,9.76594263,144.27,144.21,6.9125125]
[1768593236084,11.49136207,144.27,144.21,6.9125125]
[1768593237586,9.76594263,144.27,144.21,6.9125125]
[1768593237792,11.49136207,144.27,144.21,6.9125125]
[1768593241193,9.76594263,144.26,144.2,6.2441]
[1768593241399,359.2634,144.31,144.17,6.93149907]
[1768593241400,11.49136207,144.24,144.17,6.93149907]
[1768593241696,9.76594263,144.24,144.17,6.93149907]
[1768593241896,17.73286207,144.26,144.18,6.2447]
[1768593242092,17.73286207,144.26,144.19,6.93149907]
[1768593242288,9.76594263,144.26,144.19,6.93149907]
[1768593242488,11.49136207,144.28,144.22,6.93422901]
[1768593245304,17.73196207,144.28,144.22,6.93422901]
[1768593247404,9.76594263,144.32,144.24,6.94662454]
[1768593247705,11.49136207,144.31,144.24,6.94662454]
[1768593247903,11.49136207,144.29,144.22,269.00662454]
[1768593248298,11.49136207,144.29,144.22,13.18982454]
[1768593249303,9.76594263,144.29,144.22,13.18982454]
[1768593249503,11.49136207,144.28,144.22,6.94662454]
[1768593250003,9.76594263,144.28,144.22,6.94662454]
[1768593250301,11.49136207,144.28,144.22,6.94662454]
[1768593251398,11.48925373,144.28,144.22,6.94662454]
[1768593252107,11.48925373,144.28,144.2,6.95615763]
[1768593252108,11.48925373,144.26,144.2,6.95615763]
[1768593252707,9.76594263,144.26,144.2,6.95615763]
[1768593253601,1.7233111,144.27,144.21,6.96093738]
[1768593254303,9.76594263,144.28,144.22,6.96336361]
[1768593256404,9.76594263,144.28,144.21,6.2435]
[1768593256405,9.76594263,144.26,144.21,6.2435]
[1768593258908,9.76594263,144.26,144.19,6.2442]
[1768593259103,9.76594263,144.26,144.19,268.2842]
[1768593259503,9.76594263,144.26,144.19,275.25856346]
[1768593261013,9.76594263,144.26,144.2,13.22061488]
[1768593267517,9.76594263,144.26,144.21,13.23955853]
[1768593273015,9.76594263,144.26,144.22,6.2432]
[1768593279123,9.76594263,144.26,144.21,6.2437]
[1768593279422,8.91587269,144.22,144.15,7.01934215]
[1768593279625,8.91587269,144.22,144.14,262.04]
[1768593279827,8.91587269,144.22,144.14,269.05934215]
[1768593280025,8.91587269,144.22,144.15,6.2458]
[1768593280427,8.91587269,144.22,144.14,269.05934215]
[1768593280722,8.91587269,144.22,144.17,6.2453]
[1768593282229,10.63918379,144.22,144.14,263.7633111]
[1768593282525,10.63918379,144.22,144.14,269.06409117]
[1768593283419,8.91587269,144.22,144.14,269.06409117]
[1768593283619,10.63918379,144.22,144.14,269.06409117]
[1768593283817,10.63918379,144.22,144.16,6.2458]
[1768593284128,10.63918379,144.22,144.14,7.02409117]
[1768593284329,10.63918379,144.22,144.15,6.2462]
[1768593285231,8.91587269,144.22,144.15,6.2462]
[1768593285725,8.91587269,144.2,144.15,6.2462]
[1768593288627,8.91587269,144.2,144.14,269.12409117]
[1768593288826,8.91587269,144.2,144.14,262.1]
[1768593289530,8.91587269,144.2,144.15,6.2462]
[1768593289931,8.91587269,144.2,144.14,262.1]
[1768593296938,15.16007269,144.2,144.14,262.1]
[1768593297237,8.91587269,144.2,144.14,262.1]
[1768593298839,6.2446,144.19,144.14,262.1]
[1768593300136,6.2446,144.19,144.14,269.15365775]
[1768593300535,8.91587269,144.2,144.14,262.1]
[1768593301837,6.2453,144.18,144.14,262.1]
[1768593304238,6.2453,144.18,144.14,269.15852449]
[1768593304444,8.91587269,144.2,144.14,270.88183559]
[1768593305836,9.42751039,144.22,144.16,8.78295518]
[1768593306040,106.53661039,144.24,144.16,8.78295518]
[1768593306640,9.42751039,144.24,144.19,7.06071804]
[1768593307536,9.42751039,144.26,144.19,7.06071804]
[1768593308333,6.2427,144.24,144.19,7.06071804]
[1768593310146,6.2419,144.26,144.2,8.78709043]
[1768593310346,97.0777,144.28,144.2,8.78709043]
[1768593310547,106.50521039,144.28,144.2,8.78709043]
[1768593311146,106.50521039,144.28,144.22,1.7233111]
[1768593311346,9.42751039,144.27,144.21,1.72325566]
[1768593311846,15.66871039,144.27,144.21,1.72325566]
[1768593313346,15.66901039,144.26,144.21,1.72325566]
[1768593313542,9.42751039,144.25,144.19,1.72325566]
[1768593315649,9.42751039,144.25,144.18,7.06790744]
[1768593317145,11.15076605,144.25,144.16,7.07095644]
[1768593317350,11.15076605,144.25,144.16,269.19095644]
[1768593318350,9.42751039,144.24,144.16,275.43675644]
[1768593320044,9.42751039,144.24,144.17,7.07373854]
[1768593320953,15.66991039,144.24,144.17,7.07373854]
[1768593323155,6.2428,144.23,144.17,7.07373854]
[1768593324056,15.9409058,144.23,144.17,7.07373854]
[1768593324349,9.6981058,144.22,144.15,7.07409976]
[1768593324557,9.6981058,144.2,144.13,7.07409976]
[1768593325956,6.2447,144.19,144.13,7.07409976]
[1768593328364,6.2447,144.19,144.13,8.79735542]
[1768593328558,6.244,144.21,144.13,8.79735542]
[1768593328858,11.42136146,144.21,144.13,7.07409976]
[1768593329862,9.89750334,144.2,144.13,7.07409976]
[1768593332357,9.89750334,144.19,144.13,7.07409976]
[1768593332761,6.2451,144.18,144.11,7.08742817]
[1768593333062,9.89750334,144.17,144.11,7.08742817]
[1768593333651,9.89750334,144.16,144.09,7.97195566]
[1768593333862,9.89750334,144.16,144.09,15.06019832]
[1768593334663,16.14330334,144.16,144.09,8.81149832]
[1768593334859,11.620759,144.15,144.07,7.08904937]
[1768593336356,11.620759,144.15,144.06,7.09068487]
[1768593336763,16.14420334,144.14,144.06,13.34078487]
[1768593338061,9.89750334,144.12,144.04,7.09146172]
[1768593339766,9.89750334,144.11,144.04,7.09146172]
[1768593341769,9.89750334,144.11,144.04,13.34236172]
[1768593341968,9.89750334,144.11,144.04,7.09146172]
[1768593344869,16.14560334,144.11,144.04,7.09146172]
[1768593346368,9.89750334,144.11,144.04,8.81471738]
[1768593348965,9.89750334,144.11,144.04,7.09146172]
[1768593350272,9.89750334,144.1,144.04,7.09146172]
[1768593354474,9.89750334,144.1,144.03,270.15455566]
[1768593354874,9.89750334,144.1,144.03,277.19060151]
[1768593356176,9.89750334,144.1,144.04,7.02488517]
[1768593360983,9.89750334,144.1,144.04,13.27578517]
[1768593364887,9.89750334,144.1,144.02,277.27777135]
[1768593365283,16.14600334,144.1,144.02,277.27777135]
[1768593365486,9.17508279,144.09,144.03,6.2515]
[1768593369194,9.17508279,144.09,144.02,8.70617135]
[1768593369195,9.17508279,144.09,144.02,13.23481569]
[1768593371497,9.17508279,144.09,144.03,6.2512]
[1768593371884,9.17508279,144.09,144.03,13.20072657]
[1768593372893,6.2476,144.12,144.04,13.19592134]
[1768593373091,9.17508279,144.11,144.05,6.94492134]
[1768593373496,9.17508279,144.11,144.04,6.251]
[1768593374893,9.17508279,144.11,144.05,6.2505]
[1768593375790,9.17508279,144.1,144.03,6.94035635]
[1768593376799,9.17508279,144.09,144.04,6.251]
[1768593376994,9.17508279,144.09,144.03,6.94035635]
[1768593383105,6.2484,144.1,144.03,8.66835291]
[1768593383406,15.4496638,144.11,144.03,8.66835291]
[1768593385511,9.2016638,144.11,144.04,6.88782538]
[1768593386613,9.2016638,144.11,144.05,8.61189102]
[1768593387612,9.2016638,144.11,144.06,6.8800148]
[1768593388106,9.2016638,144.13,144.06,6.8800148]
[1768593389916,10.92966036,144.13,144.04,13.115664]
[1768593390508,10.92966036,144.13,144.05,6.8610186]
[1768593390919,10.92966036,144.13,144.05,13.1114186]
[1768593391818,10.92966036,144.13,144.06,6.85740946]
[1768593392320,10.92966036,144.13,144.06,13.10760946]
[1768593396521,10.92966036,144.13,144.07,6.2497]
[1768593396920,9.2016638,144.13,144.07,6.8399023]
[1768593397116,9.57407793,144.15,144.07,6.8399023]
[1768593397320,9.57407793,144.15,144.08,6.83650573]
[1768593398810,9.57407793,144.15,144.08,13.08560573]
[1768593402023,9.57407793,144.15,144.09,6.2488]
[1768593402721,9.57407793,144.15,144.09,7.97679656]
[1768593404823,9.57407793,144.15,144.09,6.2488]
[1768593405018,9.57407793,144.15,144.1,6.2484]
[1768593406420,1.72799656,144.18,144.11,6.2479]
[1768593406625,9.57407793,144.17,144.11,6.79284059]
[1768593407622,9.57407793,144.17,144.12,6.2475]
[1768593407823,9.57407793,144.17,144.11,6.79284059]
[1768593408025,9.57407793,144.17,144.14,6.2466]
[1768593408225,9.57407793,144.2,144.14,6.2466]
[1768593409726,9.57407793,144.2,144.15,6.2462]
[1768593409924,9.57407793,144.2,144.12,8.5104985]
[1768593411026,9.57407793,144.2,144.13,6.2471]
[1768593411626,9.57407793,144.2,144.14,6.2466]
[1768593413426,9.57407793,144.2,144.12,8.5104985]
[1768593415433,15.81817793,144.2,144.12,8.5104985]
[1768593415629,9.26739564,144.19,144.1,6.693748]
[1768593415838,10.9953922,144.19,144.1,6.693748]
[1768593416232,9.26739564,144.17,144.1,6.693748]
[1768593420036,15.51299564,144.17,144.1,6.693748]
[1768593420333,9.26739564,144.16,144.1,6.693748]
[1768593427044,9.26739564,144.16,144.09,6.2485]
[1768593428549,9.26739564,144.16,144.06,268.84234935]
[1768593428550,10.9953922,144.16,144.06,268.84234935]
[1768593428749,10.9953922,144.16,144.07,6.58234935]
[1768593429845,10.9953922,144.16,144.08,6.2493]
[1768593431953,10.9953922,144.16,144.09,6.2488]
[1768593433552,10.99418773,144.15,144.09,6.2488]
[1768593434656,10.99418773,144.15,144.1,6.2484]
[1768593435554,9.26739564,144.17,144.1,6.52912352]
[1768593436057,9.26739564,144.17,144.12,6.2475]
[1768593436456,9.26739564,144.17,144.1,6.52912352]
[1768593436857,9.26739564,144.17,144.11,6.2476]
[1768593439253,9.26739564,144.17,144.1,12.77752352]
[1768593440457,10.99418773,144.16,144.08,12.74259588]
[1768593441259,9.26739564,144.16,144.08,12.74259588]
[1768593441558,10.99418773,144.16,144.08,12.74259588]
[1768593443361,10.99418773,144.16,144.08,6.49369588]
[1768593443963,9.26739564,144.16,144.08,6.49369588]
[1768593449164,9.28366135,144.15,144.08,6.49369588]
[1768593450873,9.28366135,144.15,144.08,12.74289588]
[1768593455367,9.28366135,144.15,144.09,6.2488]
[1768593457874,9.28366135,144.15,144.07,12.6361134]
[1768593458069,9.28366135,144.13,144.05,6.38080239]
[1768593459765,9.28366135,144.13,144.05,12.63100239]
[1768593459961,9.28366135,144.13,144.06,6.37000601]
[1768593460370,9.28366135,144.13,144.07,6.36459078]
[1768593461773,9.28366135,144.13,144.07,12.61419078]
[1768593461974,9.28366135,144.13,144.07,6.36459078]
[1768593465878,9.28366135,144.12,144.04,6.33851984]
[1768593470278,11.01045344,144.12,144.04,6.33851984]
[1768593474181,11.01045344,144.12,144.04,12.58951984]
[1768593474379,9.28366135,144.12,144.05,6.31088265]
[1768593475084,9.28366135,144.12,144.05,12.56138265]
[1768593476485,9.28366135,144.12,144.06,6.2501]
[1768593478186,9.28366135,144.12,144.07,6.2497]
[1768593478587,9.28366135,144.12,144.05,6.31088265]
[1768593478886,9.28366135,144.12,144.06,12.54250541]
[1768593481192,372.0031,144.2,144.07,6.27903474]
[1768593481193,9.17874717,144.14,144.07,6.27903474]
[1768593481788,9.17874717,144.14,144.08,6.27903474]
[1768593484695,9.17874717,144.13,144.06,7.99288455]
[1768593485386,9.17874717,144.13,144.07,6.2620371]
[1768593488498,9.17874717,144.13,144.05,6.24966912]
[1768593490203,10.90553926,144.12,144.05,6.24966912]
[1768593490908,10.90553926,144.12,144.05,12.50026912]
[1768593495012,10.90553926,144.12,144.06,6.2501]
[1768593495418,9.17874717,144.12,144.05,6.24966912]
[1768593496113,9.17874717,144.12,144.07,6.2497]
[1768593496508,9.17874717,144.14,144.07,6.21919662]
[1768593497015,9.17874717,144.14,144.08,6.2492]
[1768593498014,9.17874717,144.12,144.05,7.94322031]
[1768593498815,9.17874717,144.12,144.05,6.21570685]
[1768593499815,9.17874717,144.12,144.06,6.2501]
[1768593505520,9.17874717,144.12,144.06,6.17257269]
[1768593506220,9.17874717,144.12,144.06,12.42227269]
[1768593506721,9.17874717,144.12,144.07,6.2495]
[1768593509726,14.77812813,144.14,144.08,6.15502118]
[1768593509922,8.53132813,144.14,144.08,6.15502118]
[1768593510123,8.53132813,144.14,144.08,12.40422118]
[1768593510822,8.53132813,144.13,144.06,6.15209026]
[1768593511821,8.53132813,144.12,144.06,6.15209026]
[1768593513726,8.53132813,144.12,144.06,12.40219026]
[1768593515928,8.53132813,144.12,144.07,6.2496]
[1768593517125,10.25884159,144.14,144.07,6.13540455]
[1768593517325,8.53132813,144.14,144.08,6.13273164]
[1768593523940,14.77802813,144.14,144.08,6.13273164]
[1768593526038,6.2467,144.14,144.08,6.13273164]
[1768593526838,14.77802813,144.14,144.08,6.13273164]
[1768593527441,8.53132813,144.13,144.08,6.13273164]
[1768593529546,14.77852813,144.13,144.07,1.72751346]
[1768593529743,14.77852813,144.13,144.06,12.28639348]
[1768593529945,8.53132813,144.13,144.06,12.28639348]
[1768593531946,8.53132813,144.13,144.07,6.2497]
[1768593538148,8.53132813,144.13,144.06,12.28629348]
[1768593539754,9.33846009,144.12,144.04,13.85903612]
[1768593539946,9.33846009,144.12,144.05,5.88062266]
[1768593541042,9.33846009,144.14,144.07,5.86719723]
[1768593541244,9.33846009,144.14,144.08,7.58141057]
[1768593543857,9.33846009,144.14,144.08,5.85389711]
[1768593544061,9.33846009,144.14,144.08,7.58141057]
[1768593546161,9.33846009,144.14,144.08,5.85389711]
[1768593551866,9.33846009,144.14,144.08,12.10299711]
[1768593552566,9.33846009,144.14,144.08,6.2491]
[1768593552758,9.33846009,144.13,144.06,11.96695487]
[1768593552957,9.33846009,144.13,144.04,1.72751346]
[1768593552958,11.06597355,144.13,144.04,5.71725487]
[1768593553766,9.33846009,144.11,144.04,11.96795487]
[1768593554067,9.33846009,144.11,144.04,5.71725487]
[1768593554563,9.33846009,144.1,144.02,7.4218289]
[1768593554767,9.33846009,144.1,144.04,5.69431544]
[1768593555157,11.06597355,144.12,144.04,5.69431544]
[1768593555761,11.06597355,144.12,144.06,6.2501]
[1768593556164,9.33846009,144.12,144.05,5.68299793]
[1768593561869,9.33846009,144.12,144.05,11.93349793]
[1768593562070,9.33846009,144.12,144.06,5.6010788]
[1768593562571,9.33846009,144.12,144.06,11.8511788]
[1768593562773,10.74990743,144.15,144.07,7.31800367]
[1768593563866,10.74990743,144.15,144.07,13.56760367]
[1768593564369,9.02273907,144.15,144.07,13.56760367]
[1768593565870,9.02273907,144.15,144.09,5.56089162]
[1768593566077,9.02273907,144.17,144.11,7.28805998]
[1768593566376,9.02273907,144.17,144.08,5.55108362]
[1768593566581,9.02273907,144.17,144.11,7.27825198]
[1768593566985,9.02273907,144.17,144.11,13.52615198]
[1768593568890,9.02273907,144.17,144.12,6.2474]
[1768593569786,7.98764657,144.17,144.12,11.75848158]
[1768593573184,9.71481493,144.17,144.08,6.249]
[1768593573380,9.04657708,144.14,144.08,6.249]
[1768593574287,9.04657708,144.14,144.09,6.2488]
[1768593575392,9.04657708,144.14,144.1,6.2483]
[1768593590198,9.04657708,144.14,144.07,6.51289051]
[1768593591800,9.04657708,144.14,144.09,6.2488]
[1768593593296,9.04657708,144.14,144.07,6.51289051]
[1768593595300,9.04657708,144.14,144.05,12.54144134]
[1768593595499,10.77374544,144.14,144.05,6.29084134]
[1768593596802,8.88748473,144.13,144.05,6.29084134]
[1768593597606,8.88748473,144.13,144.06,12.51547193]
[1768593597902,8.88748473,144.13,144.07,6.26537193]
[1768593598802,8.88748473,144.2,144.13,12.49991068]
[1768593599107,8.88748473,144.2,144.14,7.98017904]
[1768593599708,8.88748473,144.2,144.15,6.24055892]
[1768593600803,8.88748473,144.2,144.15,12.48675892]
[1768593601905,8.88748473,144.2,144.15,6.2462]
[1768593604806,10.61465309,144.2,144.13,6.2468]
[1768593606308,10.61465309,144.2,144.09,105.08927808]
[1768593606612,8.88748473,144.17,144.07,103.37260972]
[1768593606809,8.88748473,144.17,144.11,6.248]
[1768593607308,8.88748473,144.17,144.1,6.14591017]
[1768593607702,8.88748473,144.17,144.12,6.2473]
[1768593607906,8.88748473,144.17,144.09,1.72716836]
[1768593608811,8.88748473,144.17,144.1,6.248]
[1768593609609,8.88748473,144.17,144.11,6.2479]
[1768593610007,8.88748473,144.22,144.12,103.30850376]
[1768593610202,8.88748473,144.22,144.16,6.2458]
[1768593610203,10.61465309,144.22,144.16,6.2458]
[1768593612010,10.61465309,144.22,144.13,6.12360376]
[1768593612011,10.61465309,144.22,144.13,12.37050376]
[1768593613916,8.88748473,144.21,144.13,12.37050376]
[1768593614316,8.88748473,144.24,144.16,6.2458]
[1768593614516,8.88748473,144.24,144.16,7.97296836]
[1768593614718,8.88748473,144.24,144.16,14.0429787]
[1768593618913,8.88748473,144.24,144.18,1.72716836]
[1768593619215,8.88748473,144.24,144.18,7.75624154]
[1768593619418,8.88748473,144.24,144.18,7.75293039]
[1768593621619,8.88748473,144.24,144.18,13.99783039]
[1768593623424,8.88748473,144.24,144.19,6.2445]
[1768593625325,8.78647048,144.27,144.2,6.2441]
[1768593627225,8.78647048,144.24,144.17,7.6402999]
[1768593627425,8.78647048,144.24,144.18,5.91644269]
[1768593628820,8.78647048,144.24,144.19,6.2445]
[1768593629324,8.78647048,144.24,144.2,6.244]
[1768593630626,8.78647048,144.24,144.21,6.2436]
[1768593630826,8.06302717,144.26,144.21,6.2436]
[1768593632429,8.06302717,144.26,144.19,6.2441]
[1768593634229,9.78688438,144.25,144.19,6.2441]
[1768593635528,8.06302717,144.24,144.15,107.26093773]